fUST/lending_fUST_20260429
["ID","MTS","AMOUNT","RATE_DAILY","PERIOD"]
[421322679,1777434633460,-300.0,0.00012834,2]
[421322680,1777434633469,-300.0,0.00012834,2]
[421322681,1777434633479,-300.0,0.00012834,2]
[421322682,1777434633489,-300.0,0.00012834,2]
[421322683,1777434633499,-300.0,0.00012834,2]
[421322684,1777434633508,-300.0,0.00012834,2]
[421322685,1777434633519,-300.0,0.00012834,2]
[421322686,1777434633529,-300.0,0.00012834,2]
[421322688,1777434633538,-300.0,0.00012834,2]
[421322689,1777434633549,-300.0,0.00012834,2]
[421322690,1777434633559,-300.0,0.00012834,2]
[421322691,1777434633568,-300.0,0.00012834,2]
[421322692,1777434633580,-300.0,0.00012834,2]
[421322693,1777434633591,-300.0,0.00012834,2]
[421322694,1777434633601,-600.0,0.0001309,2]
[421322695,1777434633610,-1000.0,0.00013699,2]
[421322696,1777434633620,-2350.31,0.00013853,2]
[421322697,1777434633630,-236.73712187,0.00014279,2]
[421322698,1777434633641,-720.0,0.00014399,2]
[421322699,1777434633652,-179.9640072,0.00014436,2]
[421322700,1777434633662,-151.0,0.00014961,2]
[421322701,1777434633671,-864.0,0.00015838,2]
[421322702,1777434633680,-160.0,0.00016053,2]
[421322703,1777434633690,-272.84956419,0.00016279,2]
[421322704,1777434633700,-739.76693131,0.00017041,2]
[421322715,1777434638715,-4260.23306869,0.00017041,2]
[421322717,1777434638725,-1000.0,0.00017422,2]
[421322719,1777434638735,-308.96200651,0.00018279,2]
[421322721,1777434638745,-200.0,0.00018577,2]
[421322723,1777434638754,-164.48546112,0.00018921,2]
[421322725,1777434638763,-537.6845,0.00018921,2]
[421322726,1777434638773,-2150.738,0.00018921,2]
[421322728,1777434638783,-229.83432848,0.00018944,2]
[421322730,1777434638793,-1000.0,0.00019165,2]
[421322732,1777434638802,-244.0,0.00019165,2]
[421322734,1777434638812,-535.0,0.00019209,2]
[421322736,1777434638821,-535.0,0.00019241,2]
[421322738,1777434638831,-535.0,0.00019317,2]
[421322740,1777434638840,-535.0,0.00019369,2]
[421322742,1777434638850,-203.47,0.0001939,2]
[421322744,1777434638859,-535.0,0.00019402,2]
[421322746,1777434638869,-185.0,0.00019445,2]
[421322748,1777434638879,-153.255,0.00019445,2]
[421322750,1777434638888,-202.585,0.00019445,2]
[421322752,1777434638898,-202.585,0.00019445,2]
[421322754,1777434638907,-535.0,0.00019446,2]
[421322756,1777434638917,-500.0,0.00019499,2]
[421322758,1777434638926,-500.0,0.00019499,2]
[421322760,1777434638936,-500.0,0.00019499,2]
[421322762,1777434638945,-500.0,0.00019499,2]
[421322764,1777434638954,-164.74427322,0.00019499,2]
[421322766,1777434638964,-500.0,0.00019499,2]
[421322768,1777434638973,-500.0,0.00019499,2]
[421322770,1777434638983,-172.22678942,0.00019499,2]
[421322772,1777434638993,-500.0,0.00019499,2]
[421322774,1777434639002,-500.0,0.00019499,2]
[421322776,1777434639012,-500.0,0.00019499,2]
[421322778,1777434639022,-500.0,0.00019499,2]
[421322780,1777434639031,-386.76919721,0.00019499,2]
[421322782,1777434639041,-500.0,0.00019499,2]
[421322784,1777434639050,-500.0,0.00019499,2]
[421322786,1777434639060,-515.49850154,0.00019499,2]
[421322787,1777434639070,-18562.87779429,0.000195,2]
[421322789,1777434639080,-238.32471943,0.000195,2]
[421322791,1777434639089,-2039.34914575,0.000195,2]
[421322793,1777434639099,-535.0,0.0001952,2]
[421322795,1777434639108,-500.0,0.00019524,2]
[421322797,1777434639118,-535.0,0.00019524,2]
[421322799,1777434639128,-500.0,0.00019598,2]
[421322801,1777434639138,-350.66782486,0.00019599,2]
[421322803,1777434639147,-438.43548196,0.00019599,2]
[421322806,1777434639160,-61.56451804,0.00019599,2]
[421322808,1777434639169,-500.0,0.00019599,2]
[421322810,1777434639180,-32.60391946,0.00019599,2]
[421322812,1777434639191,-467.39608054,0.00019599,2]
[421322814,1777434639201,-500.0,0.00019599,2]
[421322816,1777434639210,-500.0,0.00019599,2]
[421322818,1777434639220,-500.0,0.00019599,2]
[421322820,1777434639229,-500.0,0.00019599,2]
[421322821,1777434639239,-500.0,0.00019599,2]
[421322823,1777434639249,-500.0,0.00019599,2]
[421322825,1777434639259,-334.2393886,0.00019599,2]
[421322828,1777434639269,-500.0,0.00019599,2]
[421322830,1777434639279,-500.0,0.00019599,2]
[421322832,1777434639288,-276.73761731,0.00019599,2]
[421322833,1777434639298,-500.0,0.00019599,2]
[421322835,1777434639307,-500.0,0.00019599,2]
[421322837,1777434639317,-500.0,0.00019599,2]
[421322839,1777434639326,-500.0,0.00019599,2]
[421322841,1777434639336,-500.0,0.00019599,2]
[421322843,1777434639345,-500.0,0.00019599,2]
[421322845,1777434639355,-500.0,0.00019599,2]
[421322847,1777434639364,-500.0,0.00019599,2]
[421322849,1777434639374,-500.0,0.00019599,2]
[421322851,1777434639384,-250.0,0.00019599,2]
[421322853,1777434639393,-500.0,0.00019599,2]
[421322855,1777434639402,-500.0,0.00019599,2]
[421322857,1777434639411,-288.18132546,0.00019599,2]
[421322859,1777434639421,-38000.0,0.000196,3]
[421322860,1777434639430,-3004.48798709,0.000196,3]
[421322862,1777434639440,-548.22875834,0.000196,2]
[421322864,1777434639449,-535.0,0.00019632,2]
[421322866,1777434639460,-535.0,0.00019633,2]
[421322868,1777434639469,-535.0,0.00019675,2]
[421322870,1777434639479,-535.0,0.00019772,2]
[421322872,1777434639490,-500.0,0.00019798,2]
[421322874,1777434639501,-500.0,0.00019799,2]
[421322876,1777434639512,-152.0,0.00019801,7]
[421322878,1777434639522,-152.0,0.0001984,7]
[421322880,1777434639532,-152.0,0.0001984,7]
[421322882,1777434639541,-152.0,0.0001986,7]
[421322884,1777434639551,-152.0,0.0001986,7]
[421322886,1777434639560,-152.0,0.0001986,7]
[421322888,1777434639570,-500.0,0.00019876,2]
[421322890,1777434639579,-7907.5016419,0.00019877,2]
[421322892,1777434639588,-152.0,0.0001989,7]
[421322894,1777434639598,-152.0,0.0001989,7]
[421322896,1777434639608,-152.0,0.0001989,7]
[421322898,1777434639618,-152.0,0.0001989,7]
[421322900,1777434639627,-214.63,0.00019898,2]
[421322902,1777434639637,-186.68,0.00019909,3]
[421322904,1777434639647,-250.0,0.00019929,2]
[421322906,1777434639657,-284.892497,0.00019933,2]
[421322908,1777434639667,-221.007514,0.00019933,2]
[421322910,1777434639676,-535.0,0.00019982,2]
[421322912,1777434639686,-347.611503,0.00019992,2]
[421322914,1777434639695,-269.662258,0.00019992,2]
[421322916,1777434639705,-500.0,0.00019997,2]
[421322918,1777434639715,-200.0,0.00019999,2]
[421322920,1777434639725,-155.0,0.00019999,2]
[421322922,1777434639734,-500.0,0.00019999,2]
[421322924,1777434639744,-500.0,0.00019999,2]
[421322926,1777434639753,-500.0,0.00019999,2]
[421322928,1777434639764,-500.0,0.00019999,2]
[421322930,1777434639774,-500.0,0.00019999,2]
[421322932,1777434639783,-500.0,0.00019999,2]
[421322934,1777434639792,-500.0,0.00019999,2]
[421322936,1777434639802,-500.0,0.00019999,2]
[421322938,1777434639812,-500.0,0.00019999,2]
[421322940,1777434639822,-500.0,0.00019999,2]
[421322942,1777434639831,-500.0,0.00019999,2]
[421322944,1777434639841,-500.0,0.00019999,2]
[421322946,1777434639850,-507.40017905,0.00019999,2]
[421322948,1777434639860,-300.0,0.00019999,2]
[421322950,1777434639870,-51830.3520867,0.0002,2]
[421322952,1777434639879,-483403.1314476,0.0002,2]
[421322954,1777434639888,-1000.0,0.0002,5]
[421322956,1777434639898,-28490.82362096,0.0002,3]
[421322958,1777434639910,-10099.03733004,0.0002,7]
[421322960,1777434639919,-218.0,0.0002,50]
[421322962,1777434639929,-159.12348573,0.0002,2]
[421322964,1777434639941,-20000.0,0.0002,2]
[421322966,1777434639950,-28540.0,0.0002,2]
[421322968,1777434639960,-22689.63409688,0.0002,30]
[421322970,1777434639970,-962398.96035076,0.0002,15]
[421322976,1777434640013,-398.97496663,0.0002,15]
[421323055,1777434641049,-509.34019575,0.0002,15]
[421323061,1777434641100,-498.60000145,0.0002,15]
[421323637,1777434647434,-152.0,0.0001874,7]
[421323639,1777434647444,-365.48583889,0.000196,2]
[421323641,1777434647455,-180.24121211,0.000198,2]
[421323643,1777434647465,-394.27338314,0.0002,15]
[421323646,1777434647482,-531.20210472,0.0002,15]
[421323648,1777434647499,-361.0,0.0002,15]
[421323651,1777434647511,-34907.64899755,0.0002,15]
[421323653,1777434647521,-8798.9230559,0.0002,30]
[421323655,1777434647533,-3795.1,0.0002,30]
[421323657,1777434647547,-1283.82286199,0.0002,30]
[421323659,1777434647559,-1316.27915126,0.0002,30]
[421323663,1777434647576,-2765.68755009,0.0002,30]
[421323665,1777434647588,-49386.71947253,0.0002,30]
[421323668,1777434647601,-154326.99021046,0.0002,30]
[421323670,1777434647613,-1150.09983376,0.0002,30]
[421323677,1777434647754,-202971.4698071,0.0002,30]
[421326098,1777435246612,1487.73442896,7.6e-05,2]
[421326099,1777435327094,-300.0,0.00012511,2]
[421326100,1777435327141,-249.31833637,0.00012512,2]
[421326101,1777435356599,-300.0,0.00012512,2]
[421326112,1777435746141,-300.0,0.00011776,2]
[421326113,1777435746164,-4450.68166363,0.00011777,2]
[421326114,1777435746184,-5000.0,0.00011897,2]
[421326115,1777435746204,-887.9627021,0.00012017,2]
[421326116,1777435746224,-95.79664501,0.00012138,2]
[421326117,1777435752524,-255.90094711,0.00012017,2]
[421326118,1777435766146,-423.69964419,0.00012017,2]
[421326119,1777435766171,-1104.20335499,0.00012138,2]
[421326120,1777435766194,-582.0,0.00012138,2]
[421326121,1777435766217,-191.87638787,0.00012139,2]
[421326122,1777435766239,-598.01660912,0.00012385,2]
[421326137,1777435831826,-500.0,0.00012895,2]
[421326138,1777435831837,-500.0,0.00012895,2]
[421326139,1777435831847,-500.0,0.00012895,2]
[421326140,1777435831856,-305.93,0.00012895,2]
[421326141,1777435831866,-300.0,0.00013556,2]
[421326142,1777435831876,-300.0,0.00013557,2]
[421326143,1777435831887,-300.0,0.00013557,2]
[421326144,1777435831897,-300.0,0.00013557,2]
[421326145,1777435831908,-204.84790379,0.00013557,2]
[421326146,1777435831920,-95.15209621,0.00013557,2]
[421326147,1777435831929,-300.0,0.00013557,2]
[421326148,1777435831939,-300.0,0.00013557,2]
[421326149,1777435831949,-185.69487085,0.00013557,2]
[421326188,1777435837950,-114.30512915,0.00013557,2]
[421326190,1777435837961,-300.0,0.00013557,2]
[421326192,1777435837971,-300.0,0.00013557,2]
[421326194,1777435837982,-300.0,0.00013557,2]
[421326196,1777435837992,-300.0,0.00013557,2]
[421326198,1777435838002,-300.0,0.00013557,2]
[421326200,1777435838012,-300.0,0.00013557,2]
[421326202,1777435838022,-300.0,0.00013557,2]
[421326204,1777435838033,-300.0,0.00013557,2]
[421326206,1777435838042,-1000.0,0.00013699,2]
[421326208,1777435838052,-226.41413768,0.00014139,2]
[421326209,1777435838062,-260.9518875,0.00016139,2]
[421326211,1777435838072,-295.48963732,0.00018139,2]
[421326213,1777435838082,-523.0,0.0001836,120]
[421326215,1777435838091,-314.0,0.0001836,120]
[421326218,1777435838102,-200.0,0.00018719,2]
[421326219,1777435838112,-202.8764366,0.00018719,7]
[421326222,1777435838123,-185.0,0.00018766,2]
[421326224,1777435838132,-160.0,0.00018872,2]
[421326226,1777435838142,-2150.738,0.00018999,2]
[421326228,1777435838153,-500.86166473,0.00019,2]
[421326230,1777435838164,-579.49,0.00019,2]
[421326232,1777435838173,-466.77899288,0.00019199,2]
[421326234,1777435838182,-523.0,0.00019278,120]
[421326236,1777435838192,-314.0,0.00019278,120]
[421326238,1777435838203,-500.0,0.00019299,2]
[421326240,1777435838213,-399.00352257,0.00019299,2]
[421326242,1777435838223,-500.0,0.00019299,2]
[421326244,1777435838233,-500.0,0.00019299,2]
[421326245,1777435838244,-584.18598957,0.00019299,2]
[421326247,1777435838254,-500.0,0.00019299,2]
[421326250,1777435838265,-500.0,0.00019299,2]
[421326252,1777435838274,-500.0,0.00019299,2]
[421326254,1777435838285,-500.0,0.00019299,2]
[421326256,1777435838296,-500.0,0.00019299,2]
[421326258,1777435838305,-500.0,0.00019299,2]
[421326260,1777435838315,-493.71633212,0.00019299,2]
[421326262,1777435838325,-500.0,0.00019299,2]
[421326264,1777435838334,-500.0,0.00019299,2]
[421326265,1777435838344,-500.0,0.00019299,2]
[421326268,1777435838355,-500.0,0.00019299,2]
[421326269,1777435838365,-500.0,0.00019299,2]
[421326271,1777435838374,-500.0,0.00019299,2]
[421326272,1777435838384,-500.0,0.00019299,2]
[421326273,1777435838394,-500.0,0.00019299,2]
[421326274,1777435838404,-500.0,0.00019299,2]
[421326275,1777435838414,-163.038,0.00019299,2]
[421326276,1777435838423,-500.0,0.00019299,2]
[421326277,1777435838433,-465.14024922,0.00019299,2]
[421326278,1777435838443,-500.0,0.00019299,2]
[421326279,1777435838453,-500.0,0.00019299,2]
[421326280,1777435838462,-207.33915468,0.00019299,2]
[421326281,1777435838472,-328.60753317,0.00019299,2]
[421326282,1777435838482,-53509.61173474,0.000193,2]
[421326283,1777435838565,-29123.70283594,0.000193,2]
[421326295,1777435840199,-188.0,0.0001836,120]
[421326296,1777435840211,-415.519,0.000193,2]
[421326297,1777435840225,-735.22994498,0.000193,2]
[421326314,1777435846243,-188.0,0.00019278,120]
[421326315,1777435846253,-2602.29908178,0.000193,2]
[421326316,1777435846265,-660.112334,0.000193,2]
[421326317,1777435846277,-1233.93026423,0.000193,2]
[421326319,1777435846355,-143350.93323747,0.000193,2]
[421326320,1777435846365,-151.0,0.000193,2]
[421326321,1777435846376,-482.0,0.00019323,120]
[421326322,1777435846386,-289.0,0.00019323,120]
[421326323,1777435846396,-174.0,0.00019323,120]
[421326324,1777435846406,-162.068,0.00019399,2]
[421326325,1777435846416,-151.0,0.000194,2]
[421326326,1777435846426,-151.0,0.000194,2]
[421326327,1777435846437,-151.0,0.000195,2]
[421326328,1777435846447,-500.0,0.00019573,2]
[421326329,1777435846456,-243.65722593,0.000196,2]
[421326330,1777435846467,-151.0,0.000196,2]
[421326332,1777435846477,-151.0,0.000196,2]
[421326333,1777435846487,-151.0,0.000197,2]
[421326334,1777435846496,-600.0,0.00019787,2]
[421326335,1777435846507,-151.0,0.000198,2]
[421326336,1777435846517,-151.0,0.000198,2]
[421326337,1777435846527,-500.0,0.00019847,2]
[421326338,1777435846537,-151.0,0.000199,2]
[421326339,1777435846547,-151.0,0.000199,2]
[421326340,1777435846558,-151.0,0.000199,2]
[421326341,1777435846569,-151.0,0.000199,2]
[421326342,1777435846579,-466.77899287,0.00019934,2]
[421326343,1777435846589,-38283.24436169,0.0002,30]
[421326344,1777435846603,-8612.45833566,0.0002,30]
[421326345,1777435846614,-1794.12002612,0.0002,30]
[421326346,1777435846627,-1306.95826594,0.0002,30]
[421326364,1777436836133,-197.16320224,0.0001321,2]
[421326365,1777436946083,-2524.60945241,0.0001321,2]
[421326396,1777437031889,-5000.0,0.00013078,2]
[421326398,1777437031900,-566.0,0.00013078,2]
[421326400,1777437031910,-198.46901114,0.00013277,2]
[421326405,1777437031943,-9.08930357,0.00013277,2]
[421326407,1777437031952,-1000.0,0.00013699,2]
[421326408,1777437031963,-244.91881135,0.00015277,2]
[421326410,1777437031974,-160.0,0.00016148,2]
[421326412,1777437031983,-164.53,0.00016337,2]
[421326414,1777437031992,-157.22,0.00016742,2]
[421326416,1777437032002,-282.279308,0.00017277,2]
[421326418,1777437032012,-161.0,0.0001836,120]
[421326420,1777437032022,-162.0,0.0001836,120]
[421326422,1777437032031,-256.0,0.0001836,120]
[421326424,1777437032041,-2150.738,0.00018995,2]
[421326426,1777437032050,-763.53299097,0.00019,2]
[421326537,1777437040785,-5000.0,0.0001881,2]
[421326538,1777437040796,-94.73700903,0.00019,2]
[421326539,1777437040806,-267.0,0.00019,2]
[421326540,1777437040817,-151.0,0.00019197,2]
[421326541,1777437040827,-151.0,0.00019197,2]
[421326542,1777437040838,-288.7561406,0.00019197,2]
[421326543,1777437040848,-168.0,0.000192,2]
[421326544,1777437040858,-319.63980465,0.00019277,2]
[421326545,1777437040868,-161.0,0.00019278,120]
[421326546,1777437040878,-162.0,0.00019278,120]
[421326547,1777437040888,-256.0,0.00019278,120]
[421326548,1777437040898,-168.0,0.00019291,2]
[421326549,1777437040908,-174.0,0.00019323,120]
[421326550,1777437040918,-174.0,0.00019323,120]
[421326551,1777437040928,-971.3008699,0.00019368,2]
[421326552,1777437040938,-537.6845,0.00019413,2]
[421326553,1777437040948,-2158.0934325,0.00019425,2]
[421326554,1777437040962,-961.7531508,0.00019425,2]
[421326555,1777437040971,-1426.2670313,0.00019425,2]
[421326556,1777437040981,-1115.5239323,0.00019425,2]
[421326557,1777437040991,-500.0,0.00019507,2]
[421326558,1777437041002,-442.0,0.00019508,2]
[421326559,1777437041012,-185.0,0.00019508,2]
[421326560,1777437041022,-149.94,0.00019523,2]
[421326561,1777437041031,-2230.315306,0.00019543,2]
[421326562,1777437041041,-5000.0,0.00019562,2]
[421326563,1777437041051,-162.068,0.00019575,2]
[421326564,1777437041062,-168.0,0.00019575,2]
[421326565,1777437041072,-500.0,0.00019588,2]
[421326566,1777437041083,-164.74427322,0.00019588,2]
[421326567,1777437041092,-500.0,0.00019588,2]
[421326568,1777437041103,-489.74470351,0.00019588,2]
[421326569,1777437041113,-500.0,0.00019588,2]
[421326570,1777437041124,-500.0,0.00019588,2]
[421326571,1777437041134,-500.0,0.00019588,2]
[421326572,1777437041145,-500.0,0.00019588,2]
[421326573,1777437041154,-500.0,0.00019588,2]
[421326574,1777437041164,-355.00411048,0.00019588,2]
[421326575,1777437041174,-500.0,0.00019588,2]
[421326576,1777437041183,-500.0,0.00019588,2]
[421326577,1777437041194,-500.0,0.00019588,2]
[421326578,1777437041204,-213.94865139,0.00019588,2]
[421326579,1777437041215,-500.0,0.00019588,2]
[421326580,1777437041225,-5000.0,0.00019589,2]
[421326581,1777437041236,-500.0,0.00019598,2]
[421326582,1777437041246,-18562.87779429,0.00019599,2]
[421326583,1777437041257,-875.54299328,0.000196,2]
[421326584,1777437041266,-5000.0,0.00019644,2]
[421326585,1777437041276,-160.0,0.00019671,2]
[421326586,1777437041286,-224.4370622,0.00019671,2]
[421326587,1777437041295,-5000.0,0.00019671,2]
[421326588,1777437041305,-238.32471943,0.0001968,2]
[421326589,1777437041315,-238.32471943,0.0001968,2]
[421326590,1777437041324,-5000.0,0.00019699,2]
[421326591,1777437041334,-5000.0,0.00019753,2]
[421326592,1777437041344,-1365.63,0.00019781,2]
[421326593,1777437041354,-500.0,0.00019872,2]
[421326594,1777437041363,-168.0,0.00019874,2]
[421326595,1777437041372,-1244.22,0.00019899,2]
[421326596,1777437041382,-1244.22,0.00019899,2]
[421326597,1777437041392,-500.0,0.00019899,2]
[421326598,1777437041401,-149.94,0.00019913,2]
[421326599,1777437041411,-250.0,0.00019918,2]
[421326600,1777437041421,-250.0,0.00019918,2]
[421326601,1777437041431,-168.0,0.00019925,2]
[421326602,1777437041440,-500.0,0.00019934,2]
[421326603,1777437041450,-168.0,0.0001994,2]
[421326604,1777437041460,-557.5788265,0.00019961,2]
[421326605,1777437041471,-214.0,0.0001999,2]
[421326606,1777437041481,-500.0,0.00019991,2]
[421326607,1777437041492,-500.0,0.00019991,2]
[421326608,1777437041503,-491.97804487,0.00019991,2]
[421326609,1777437041514,-500.0,0.00019991,2]
[421326610,1777437041525,-500.0,0.00019991,2]
[421326611,1777437041536,-500.0,0.00019991,2]
[421326612,1777437041547,-500.0,0.00019991,2]
[421326613,1777437041557,-500.0,0.00019991,2]
[421326614,1777437041567,-500.0,0.00019991,2]
[421326615,1777437041578,-500.0,0.00019991,2]
[421326616,1777437041588,-500.0,0.00019991,2]
[421326617,1777437041598,-341.25867707,0.00019991,2]
[421326618,1777437041610,-500.0,0.00019991,2]
[421326619,1777437041620,-500.0,0.00019991,2]
[421326620,1777437041630,-500.0,0.00019991,2]
[421326621,1777437041640,-500.0,0.00019991,2]
[421326622,1777437041651,-500.0,0.00019991,2]
[421326623,1777437041661,-500.0,0.00019991,2]
[421326624,1777437041671,-191.9749255,0.00019991,2]
[421326625,1777437041682,-151.0,0.00019993,2]
[421326626,1777437041692,-151.0,0.00019993,2]
[421326627,1777437041701,-325.5277396,0.00019993,2]
[421326628,1777437041711,-151.0,0.00019993,2]
[421326629,1777437041720,-151.0,0.00019993,2]
[421326630,1777437041730,-325.5277396,0.00019993,2]
[421326631,1777437041740,-325.478895,0.00019993,2]
[421326632,1777437041750,-201.87810706,0.00019999,2]
[421326633,1777437041759,-1244.22,0.00019999,2]
[421326634,1777437041769,-1244.22,0.00019999,2]
[421326635,1777437041779,-1244.22,0.00019999,2]
[421326636,1777437041790,-1244.22,0.00019999,2]
[421326637,1777437041800,-1244.22,0.00019999,2]
[421326638,1777437041809,-1244.22,0.00019999,2]
[421326639,1777437041819,-1244.22,0.00019999,2]
[421326640,1777437041828,-1244.22,0.00019999,2]
[421326641,1777437041844,-1244.22,0.00019999,2]
[421326642,1777437041855,-1244.22,0.00019999,2]
[421326643,1777437041865,-1244.22,0.00019999,2]
[421326644,1777437041875,-1244.22,0.00019999,2]
[421326645,1777437041885,-1244.22,0.00019999,2]
[421326646,1777437041895,-1244.22,0.00019999,2]
[421326647,1777437041905,-1244.22,0.00019999,2]
[421326648,1777437041915,-1244.22,0.00019999,2]
[421326649,1777437041925,-1244.22,0.00019999,2]
[421326650,1777437041936,-1244.22,0.00019999,2]
[421326651,1777437041946,-1244.22,0.00019999,2]
[421326652,1777437041956,-1244.22,0.00019999,2]
[421326653,1777437041966,-1244.22,0.00019999,2]
[421326654,1777437041975,-1244.4408668,0.00019999,2]
[421326655,1777437041986,-81473.68921573,0.0002,30]
[421326656,1777437042015,-315.01758211,0.0002,30]
[421326657,1777437042027,-2131.03062855,0.0002,30]
[421326658,1777437042040,-21013.01230955,0.0002,30]
[421326659,1777437042053,-1312.0,0.0002,30]
[421326660,1777437042065,-98844.65079665,0.0002,30]
[421326669,1777437043473,-152.0,0.00019062,7]
[421326670,1777437043484,-731.78789779,0.0002,30]
[421326671,1777437043496,-3124.19821707,0.0002,30]
[421326672,1777437043508,-1068.60977253,0.0002,30]
[421326677,1777437046617,-346.82645594,0.000196,2]
[421326678,1777437046868,-236.86887292,0.000196,2]
[421326679,1777437046879,-160.0,0.00019992,2]
[421326680,1777437046888,-861.00300715,0.00019992,2]
[421326681,1777437046974,-1135.16637585,0.00019992,2]
[421326682,1777437046987,-3832.338767,0.00019992,2]
[421326683,1777437046998,-73267.72945669,0.0002,30]
[421326684,1777437088661,1100.00043414,0.00012,2]
[421326685,1777438039095,-268.1521904,0.00011527,2]
[421326686,1777438039118,-212.2534752,0.00011792,2]
[421326687,1777438039140,-255.9302344,0.00011999,2]
[421326688,1777438153112,-702.23349347,0.00011879,2]
[421326689,1777438154097,-867.22690464,0.00011879,2]
[421326690,1777438154132,-468.08031561,0.00011879,2]
[421326691,1777438161107,-118.91968439,0.00011879,2]
[421326692,1777438161332,-83.7415578,0.00011999,2]
[421326693,1777438162085,-284.69932057,0.00011999,2]
[421326694,1777438173134,-575.62888723,0.00011999,2]
[421326695,1777438173155,-300.0,0.00011999,2]
[421326696,1777438173177,-210.44210991,0.00011999,2]
[421326697,1777438173196,-440.23030362,0.00012,2]
[421326698,1777438173216,-2000.0,0.00012,2]
[421326699,1777438173237,-275.35438331,0.00012,2]
[421326700,1777438173257,-400.0,0.000121,30]
[421326701,1777438173279,-328.05131593,0.000121,30]
[421326717,1777438232231,-181.49145917,0.000121,30]
[421326718,1777438232242,-415.50854083,0.00013699,2]
[421326719,1777438232254,-584.49145917,0.00013699,2]
[421326720,1777438232263,-300.0,0.0001379,2]
[421326721,1777438232273,-300.0,0.0001379,2]
[421326722,1777438232283,-300.0,0.0001379,2]
[421326723,1777438232292,-284.25654083,0.0001379,2]
[421326724,1777438232303,-462.80523468,0.0001379,2]
[421326776,1777438240333,-500.0,0.0001379,2]
[421326778,1777438240343,-545.08866776,0.0001379,2]
[421326780,1777438240353,-452.93822449,0.0001379,2]
[421326782,1777438240363,-300.0,0.0001379,2]
[421326784,1777438240372,-500.0,0.0001379,2]
[421326786,1777438240382,-37515.85719302,0.00013792,2]
[421326788,1777438240391,-248.3216897,0.00014,2]
[421326790,1777438240400,-286.20126948,0.00016,2]
[421326792,1777438240410,-324.08084927,0.00018,2]
[421326793,1777438240420,-151.0,0.00018375,2]
[421326795,1777438240429,-192.96,0.0001845,2]
[421326797,1777438240439,-535.0,0.00018469,2]
[421326799,1777438240449,-151.90973864,0.00018557,2]
[421326801,1777438240460,-535.0,0.00018612,2]
[421326803,1777438240470,-535.0,0.00018657,2]
[421326805,1777438240480,-151.9097386,0.00018718,2]
[421326807,1777438240489,-535.0,0.0001876,2]
[421326809,1777438240500,-535.0,0.00018804,2]
[421326811,1777438240510,-151.9097386,0.00018878,2]
[421326813,1777438240520,-535.0,0.00018972,2]
[421326815,1777438240530,-2150.738,0.00018978,2]
[421326817,1777438240542,-176.6873613,0.00018982,2]
[421326818,1777438240552,-535.0,0.00019005,2]
[421326820,1777438240562,-535.0,0.00019038,2]
[421326822,1777438240572,-151.9097386,0.00019039,2]
[421326824,1777438240582,-535.0,0.00019079,2]
[421326826,1777438240592,-325.5277396,0.0001919,2]
[421326828,1777438240602,-151.9097386,0.00019199,2]
[421326830,1777438240612,-535.0,0.00019213,2]
[421326832,1777438240622,-6866.30968966,0.0001922,2]
[421326834,1777438240632,-151.0,0.0001922,2]